{"text_format":"3","workbook":"xlsx","n_sheets":2,"sheets":["SĀKUMS","BUDŽETA RĪKS"],"not_rendered":{"defined_names":2},"read":"whole","date_system":"1900"}

{"sheet":"SĀKUMS","index":0,"n_rows":7,"n_cols":2,"rows_kept":7}
[null,"PAR ŠO VEIDNI"]
[null,"Reģistrējiet sākotnējos ieguldījumus tīmekļa vietnē, tās sniegtos ieguvumi un izmaksas, izmantojot šo tīmekļa vietnes budžeta rīks."]
[null,"Ievadiet uzņēmuma nosaukums un datums."]
[null,"Ievadiet datus tabulās, lai automātiski aprēķinātu kopā un novērtēšanas rādītāji."]
[null,"Piezīme.  "]
[null,"Papildu norādījumi ir sniegti darblapas BUDŽETA RĪKS kolonnā A. Šis teksts ir paslēpts ar nolūku. Lai tekstu noņemtu, atlasiet kolonnu A, pēc tam atlasiet DZĒST. Lai parādītu slēpto tekstu, atlasiet kolonnu A, pēc tam nomainiet fonta krāsu."]
[null,"Lai iegūtu papildinformāciju par tabulām darblapā, nospiediet taustiņu SHIFT un pēc tam F10 tabulā, atlasiet opciju TABULA un pēc tam atlasiet ALTERNATĪVAIS TEKSTS."]

{"sheet":"BUDŽETA RĪKS","index":1,"n_rows":43,"n_cols":6,"rows_kept":43,"merged":[[14,1,14,5],[22,1,22,5],[30,1,30,5],[38,1,38,5]]}
["Šajā darblapā izveidojiet tīmekļa vietnes budžetu. Šīs kolonnas šūnās ir noderīgi norādījumi par to, kā lietot šo darblapu. Bultiņa uz leju, lai sāktu darbu."]
["Šūnā pa labi ievadiet uzņēmuma nosaukums.","Uzņēmuma nosaukums"]
["Šīs darblapas nosaukums ir šūnā pa labi.","Tīmekļa vietnes budžeta rīks"]
["Šūnā pa labi ievadiet datums.","Datums"]
["Šūnā pa labi ir padoms.","Pelēkajās šūnās ir aprēķini, kas nav jāmaina."]
["Sākot no šūnas pa labi, likme tabulā ievadiet detalizētu informāciju. Nākamais norādījums ir šūnā A10.","Uzņēmuma dati","Likme"]
[null,"Nepieciešamā peļņas norma",{"v":0.1,"d":"10%"}]
[null,"Nodokļu likme",{"v":0.3,"d":"30%"}]
[]
["Sākot no šūnas pa labi, sākotnējie ieguldījumi tabulā ievadiet detalizētu informāciju. Nākamais norādījums ir šūnā A16.","Sākotnējie ieguldījumi tīmekļa vietnē","GADS","1","2","3"]
[null,"Aparatūra (piemēram, serveri)",{"v":25000,"d":"25,000.00 EUR"}]
[null,"Programmatūra (piemēram, e-tirdzniecības kataloga programmatūra)",{"v":15000,"d":"15,000.00 EUR"}]
[null,"Izstrāde (piemēram, trešās puses nodrošināts vietnes noformējums un izstrāde)",{"v":150000,"d":"150,000.00 EUR"}]
[null,"Sākotnējo ieguldījumu kopsumma",{"$f":"SUBTOTAL(109,Sākotnējie_ieguldījumi[GADS])","v":{"v":190000,"d":"190,000.00 EUR"}}]
[]
["Sākot no šūnas pa labi, ieguvumi tabulā ievadiet detalizētu informāciju. Nākamais norādījums ir šūnā A24.","Ieguvumi no tīmekļa vietnes","GADS","1","2","3"]
[null,"Tiešā pārdošana",null,{"v":15000,"d":"15,000.00 EUR"},{"v":50000,"d":"50,000.00 EUR"},{"v":75000,"d":"75,000.00 EUR"}]
[null,"Pakāpenisks pārdošanas apjoma pieaugums, ko izraisa uzlabota reklāmas/pārdošanas personāla darba efektivitāte",null,{"v":25000,"d":"25,000.00 EUR"},{"v":25000,"d":"25,000.00 EUR"},{"v":25000,"d":"25,000.00 EUR"}]
[null,"Pakāpenisks pārdošanas apjoma pieaugums, ko izraisa paaugstināta partneru iesaistīšanās pakāpe",null,{"v":25000,"d":"25,000.00 EUR"},{"v":25000,"d":"25,000.00 EUR"},{"v":25000,"d":"25,000.00 EUR"}]
[null,"Samazinātas ceļošanas izmaksas",null,{"v":25000,"d":"25,000.00 EUR"},{"v":25000,"d":"25,000.00 EUR"},{"v":25000,"d":"25,000.00 EUR"}]
[null,"Samazinātas klientu apkalpošanas izmaksas",null,{"v":50000,"d":"50,000.00 EUR"},{"v":50000,"d":"50,000.00 EUR"},{"v":50000,"d":"50,000.00 EUR"}]
[null,"Ieguvumu kopsumma",null,{"$f":"SUBTOTAL(109,Ieguvumi[1])","v":{"v":140000,"d":"140,000.00 EUR"}},{"$f":"SUBTOTAL(109,Ieguvumi[2])","v":{"v":175000,"d":"175,000.00 EUR"}},{"$f":"SUBTOTAL(109,Ieguvumi[3])","v":{"v":200000,"d":"200,000.00 EUR"}}]
[]
["Sākot no šūnas pa labi, izmaksas tabulā ievadiet detalizētu informāciju. Vērtības tiek automātiski aprēķinātas šūnās ar formulām. Nākamais norādījums ir šūnā A32.","Izmaksas (izņemot sākotnējos kapitālieguldījumus)","GADS","1","2","3"]
[null,"Pārdošanas izmaksas",null,{"v":7500,"d":"7,500.00 EUR"},{"v":25000,"d":"25,000.00 EUR"},{"v":37500,"d":"37,500.00 EUR"}]
[null,"Uzturēšana",null,{"v":15000,"d":"15,000.00 EUR"},{"v":15000,"d":"15,000.00 EUR"},{"v":15000,"d":"15,000.00 EUR"}]
[null,"Projektu pārvaldība, klientu atbalsts",null,{"v":35000,"d":"35,000.00 EUR"},{"v":35000,"d":"35,000.00 EUR"},{"v":35000,"d":"35,000.00 EUR"}]
[null,"Tiešsaistes reklāmas, reģistrācija meklēšanas programmās",null,{"v":10000,"d":"10,000.00 EUR"},{"v":10000,"d":"10,000.00 EUR"},{"v":10000,"d":"10,000.00 EUR"}]
[null,"Kapitālieguldījumu amortizācija (aprēķinos tiek izmantots trīs gadu periods)",null,{"$f":"Sākotnējie_ieguldījumi[[#Totals],[GADS]]/3","v":{"v":63333.333333333336,"d":"63,333.33 EUR"}},{"$f":"Sākotnējie_ieguldījumi[[#Totals],[GADS]]/3","v":{"v":63333.333333333336,"d":"63,333.33 EUR"}},{"$f":"Sākotnējie_ieguldījumi[[#Totals],[GADS]]/3","v":{"v":63333.333333333336,"d":"63,333.33 EUR"}}]
[null,"Kopējās izmaksas",null,{"$f":"SUBTOTAL(109,Izmaksas[1])","v":{"v":130833.33333333334,"d":"130,833.33 EUR"}},{"$f":"SUBTOTAL(109,Izmaksas[2])","v":{"v":148333.33333333334,"d":"148,333.33 EUR"}},{"$f":"SUBTOTAL(109,Izmaksas[3])","v":{"v":160833.33333333334,"d":"160,833.33 EUR"}}]
[]
["Vērtības tiek automātiski aprēķinātas tabulā Kopā, sākot ar šūnu pa labi. Nākamais norādījums ir šūnā A40.","Kopā","GADS","1","2","3"]
[null,"Neto ieguvumi (izmaksas)",null,{"$f":"Ieguvumi[[#Totals],[1]]-Izmaksas[[#Totals],[1]]","v":{"v":9166.666666666657,"d":"9,166.67 EUR"}},{"$f":"Ieguvumi[[#Totals],[2]]-Izmaksas[[#Totals],[2]]","v":{"v":26666.666666666657,"d":"26,666.67 EUR"}},{"$f":"Ieguvumi[[#Totals],[3]]-Izmaksas[[#Totals],[3]]","v":{"v":39166.66666666666,"d":"39,166.67 EUR"}}]
[null,"Nodokļi",null,{"$f":"D33*Nodokļa_likme","v":{"v":2749.999999999997,"d":"2,750.00 EUR"}},{"$f":"E33*Nodokļa_likme","v":{"v":7999.999999999996,"d":"8,000.00 EUR"}},{"$f":"F33*Nodokļa_likme","v":{"v":11749.999999999996,"d":"11,750.00 EUR"}}]
[null,"Vērtība pēc nodokļiem",null,{"$f":"D33-D34","v":{"v":6416.666666666661,"d":"6,416.67 EUR"}},{"v":18666.66666666666,"d":"18,666.67 EUR"},{"v":27416.66666666666,"d":"27,416.67 EUR"}]
[null,"Nolietojums pievienots atpakaļ",null,{"$f":"D29","v":{"v":63333.333333333336,"d":"63,333.33 EUR"}},{"$f":"E29","v":{"v":63333.333333333336,"d":"63,333.33 EUR"}},{"$f":"F29","v":{"v":63333.333333333336,"d":"63,333.33 EUR"}}]
[null,"Naudas plūsma",{"$f":"-Sākotnējie_ieguldījumi[[#Totals],[GADS]]","v":{"v":-190000,"d":"-190,000.00 EUR"}},{"$f":"D35+D36","v":{"v":69750,"d":"69,750.00 EUR"}},{"v":82000,"d":"82,000.00 EUR"},{"v":90750,"d":"90,750.00 EUR"}]
[null,"Kumulatīvā naudas plūsma",{"$f":"C37","v":{"v":-190000,"d":"-190,000.00 EUR"}},{"$f":"C38+D37","v":{"v":-120250,"d":"-120,250.00 EUR"}},{"v":-38250,"d":"-38,250.00 EUR"},{"v":52500,"d":"52,500.00 EUR"}]
[]
["Novērtēšanas rādītāji tiek automātiski aprēķināti tabulā Rādītāji, sākot ar šūnu pa labi.","Novērtēšanas rādītāji","Vērtības"]
[null,"Pašreizējā neto vērtība (NPV)",{"$f":"C37+(NPV(ROR,D37:F37))","v":{"v":9359.504132231377,"d":"9,359.50 EUR"}}]
[null,"Iekšējās atdeves koeficients (IRR)",{"$f":"IRR(C37:F37)","v":{"v":0.12655165144706393,"d":"12.66%"}}]
[null,"Atmaksas periods (gados)",{"$f":"IF(F38<=0,\"Pārsniedz 3 gadus\",IF(E38<=0,(F37-F38)/F37+2,IF(D38<=0,(E37-E38)/E37+1,IF(C38<=0,(D37-D38)/D37,\"Nav datu\"))))","v":{"v":2.4214876033057853,"d":"2.42"}}]